Cogmind - Beta 14 @@@ ROGUE MODE // 2025.03.02 @ 01:26:22 Player: UberDoot Result: Destroyed by WD-TEK(j) with Overtuned Pulse Rifle Performance ------------- Evolutions (3) 1500 Regions Visited (9) 1800 Robots Destroyed (212) 1060 Value Destroyed (7396) 7396 Prototype IDs (41) 820 Alien Tech Used (0) 0 Bonus (501) 501 TOTAL SCORE: 13077 Bonus ------- High Alert Combat Kills 267 Aligned with FarCom 300 Friendly Fire -66 Cogmind --------- Core Integrity 0/700 Matter 286/300 Energy 233/290 System Corruption 2% Temperature Hot (288) Movement Rolling (160) Ox4 Location -7/Scraptown Parts ------- > --- POWER (1) -------- Reinforced Deuterium Engine > --- PROPULSION (4) --- Armored Huge Wheel > --- UTILITY (4) ------ Huge Storage Unit Advanced Targeting Computer Makeshift Weapon Shielding Makeshift Medium Armor Plating > --- WEAPON (4) ------- XL Autogun Subcomponent XL Autogun Subcomponent Heavy Missile Launcher > --- INVENTORY (25) --- Hybrid Fission Core Light Treads Improved Heat Sink Compact Matter Pod (150) Makeshift Medium Armor Plating High-powered Tractor Beam Gatling Laser Gatling Laser Cooled Pulse Rifle Improved Spread Laser Cooled Particle Cannon XL Autogun Subcomponent Siege Cannon Improved Grenade Launcher Improved Grenade Launcher CPS Tube (1) Peak State ------------ > --- POWER ------------ Deuterium Engine > --- PROPULSION ------- Tri-treads Compact Wheel > --- UTILITY ---------- Improved Heat Sink Huge Storage Unit Improved Weapon Shielding Medium Reactive Plating > --- WEAPON ----------- XL Autogun Array > --- INVENTORY -------- Reinforced Deuterium Engine Light Treads Light Treads Armored Treads Wheel Wheel Armored Huge Wheel Compact Matter Pod Advanced Targeting Computer Medium Reactive Plating High-powered Tractor Beam Gatling Laser Gatling Laser Cooled Pulse Rifle Improved Spread Laser Improved Spread Laser Cooled Particle Cannon Improved Grenade Launcher Improved Grenade Launcher Heavy Missile Launcher CPS Tube [Rating: 76] Favorites ----------- Power Reinforced Deuterium Engine Engine Reinforced Deuterium Engine Power Core Light Nuclear Core Propulsion Light Treads Treads Light Treads Leg Aluminum Leg Wheel Compact Wheel Hover Unit Cooled Airjet Utility Cargo Storage Unit Device Improved Heat Sink Storage Cargo Storage Unit Processor Advanced Targeting Computer Protection Medium Reactive Plating Weapon Enhanced Autogun Energy Gun Heavy Laser Energy Cannon Cooled Particle Cannon Ballistic Gun Enhanced Autogun Ballistic Cannon Siege Cannon Launcher Improved Grenade Launcher Special Weapon CPS Tube Build | -11 -10 -10 -10 -9 -8 -7 -7 -7 -7 ------- Run | Yrd Mat Min Exi Min Mat Fac Sto Rec Scr Slots Evolved 6 | . . . . . 4 2 . . . Power . | . . . . . . . . . . Propulsion 2 | . . . . . 1 1 . . . Utility 2 | . . . . . 1 1 . . . Weapon 2 | . . . . . 2 . . . . Parts Attached 189 | 9 11 1 . 1 37 19 54 2 55 Power 14 | 1 3 . . . 3 . 5 . 2 Engine 12 | 1 3 . . . 2 . 4 . 2 Core 2 | . . . . . 1 . 1 . . Reactor . | . . . . . . . . . . Propulsion 54 | 2 2 . . 1 14 6 13 1 15 Treads 31 | 2 2 . . 1 9 2 6 1 8 Leg 2 | . . . . . 1 . . . 1 Wheel 20 | . . . . . 4 3 7 . 6 Hover 1 | . . . . . . 1 . . . Flight . | . . . . . . . . . . Utility 54 | 2 2 . . . 7 7 7 1 28 Device 20 | 1 1 . . . 3 2 2 1 10 Storage 4 | 1 1 . . . 1 . . . 1 Processor 3 | . . . . . . 2 . . 1 Hackware . | . . . . . . . . . . Protection 27 | . . . . . 3 3 5 . 16 Artifact . | . . . . . . . . . . Weapon 67 | 4 4 1 . . 13 6 29 . 10 Energy Gun 21 | 4 . . . . 2 1 14 . . Energy Cannon 18 | . 2 1 . . 3 1 10 . 1 Ballistic Gun 22 | . 2 . . . 8 4 2 . 6 Ballistic Cannon 1 | . . . . . . . . . 1 Launcher 4 | . . . . . . . 3 . 1 Special Weapon 1 | . . . . . . . . . 1 Impact Weapon . | . . . . . . . . . . Slashing Weapon . | . . . . . . . . . . Piercing Weapon . | . . . . . . . . . . Special Melee Weapon . | . . . . . . . . . . Unidentified Prototypes 17 | . . . . . 2 4 9 . 2 Parts Lost 48 | . 1 1 . 1 4 1 24 . 16 Power 5 | . 1 . . . 1 . 1 . 2 Propulsion 21 | . . . . 1 2 1 10 . 7 Utility 12 | . . . . . . . 5 . 7 Weapon 10 | . . 1 . . 1 . 8 . . Highest Loss Streak 9 | . 1 1 . 1 3 1 9 . 6 To Critical Strikes . | . . . . . . . . . . Average Slot Usage (%) 91 | . 98 100 100 99 96 91 86 92 83 Engine 7 | . 13 14 14 14 4 7 6 7 6 Treads 18 | . 28 28 28 27 20 15 14 15 15 Wheel 9 | . . . . . 5 14 14 15 12 Device 7 | . 13 14 14 14 8 . 5 7 6 Storage 8 | . 14 14 14 14 9 7 7 7 7 Processor 1 | . . . . . . 7 2 . 1 Protection 6 | . . . . . 6 6 5 7 12 Energy Gun 6 | . 1 . . . . . 13 23 10 Energy Cannon 6 | . 16 14 14 14 3 . 5 7 4 Ballistic Gun 13 | . 9 14 14 14 31 30 6 . 1 Peak Build Rating 76 | 8 10 10 13 13 42 51 51 51 76 Average Rating 37 | 6 9 9 11 12 34 46 43 50 53 On Entrance 24 | . 8 10 10 13 13 40 48 51 51 Naked Turns . | . . . . . . . . . . Heaviest Build 198 | 15 34 32 32 32 177 177 198 196 196 Greatest Support 82 | 40 40 40 40 40 64 42 40 26 82 Greatest Overweight (x) 11 | . . . . . 11 11 8 7 8 Average Overweight (x) 3 | . . . . . 1 5 6 7 5 Largest Inventory Capacity 30 | 8 15 15 15 15 30 30 30 30 30 Average Capacity 23 | 7 13 15 15 15 18 30 30 30 26 Most Carried 30 | 8 15 15 15 15 30 30 30 30 30 Average Carried 22 | 5 12 14 14 14 17 29 29 29 25 Final Capacity 30 | 8 15 15 15 15 30 30 30 30 25 Final Carried 30 | 8 15 14 15 15 30 30 30 30 18 Class Distribution -------------------- 35% | Hauler-Skirmisher 21% | Mutant 10% | Tank 9% | Scavenger-Tank 6% | Hauler-Tank 6% | Scavenger-Skirmisher 3% | Scavenger-Mutant 3% | Skirmisher Dominant Class ---------------- Mutant | -10/Materials Mutant | -10/Mines Mutant | -10/Exiles Mutant | -9/Mines Tank | -8/Materials Hauler-Skirmisher | -7/Factory Hauler-Skirmisher | -7/Storage Hauler-Skirmisher | -7/Recycling Scavenger-Tank | -7/Scraptown Resources | -11 -10 -10 -10 -9 -8 -7 -7 -7 -7 ----------- Run | Yrd Mat Min Exi Min Mat Fac Sto Rec Scr Matter Collected 7870 | 251 343 . . 273 1486 764 1225 56 3472 Remotely 2030 | . . . . . . . . . 2030 Salvage Created 10312 | 85 323 . . 122 1802 806 2455 299 4420 Parts 552 | 10 23 . . 5 121 41 103 11 238 Haulers Intercepted 8 | . 2 . . . 3 1 2 . . Recyclers Shooed 5 | 1 . . . . 2 1 1 . . Parts Field Recycled . | . . . . . . . . . . Retrieved Matter . | . . . . . . . . . . Parts Self-Destructed 1 | . . . . . . . . . 1 Prevented . | . . . . . . . . . . Kills | -11 -10 -10 -10 -9 -8 -7 -7 -7 -7 ------- Run | Yrd Mat Min Exi Min Mat Fac Sto Rec Scr Combat Hostiles Destroyed 161 | . 5 . . 4 30 10 37 4 71 Guns 102 | . . . . 2 24 10 19 2 45 Cannons 49 | . 5 . . 2 6 . 10 1 25 AOE 7 | . . . . . . . 6 . 1 Classes Destroyed 23 | 1 4 . . 1 6 1 1 . 9 Worker 7 | . . . . 1 2 . 3 . 1 Builder 6 | . . . . . 2 . 4 . . Tunneler 8 | 5 1 . . 1 1 . . . . Hauler 8 | . 2 . . . 3 1 2 . . Recycler 9 | . . . . . 3 2 4 . . Operator 4 | . . . . . 1 2 . . 1 Watcher 9 | . 3 . . . 4 . 2 . . Swarmer 16 | . 3 . . 3 10 . . . . Grunt 38 | . 2 . . 1 10 6 19 . . Brawler 3 | . . . . . 2 . 1 . . Duelist 2 | . . . . . 1 . 1 . . Sentry 20 | . . . . . 7 1 9 3 . Hunter 2 | . . . . . . . 2 . . Programmer 8 | . . . . . . 3 5 . . Bolteater 7 | . . . . . . . . . 7 Federalist 1 | . . . . . . . . . 1 Explorer 12 | . . . . . . . . . 12 Ranger 3 | . . . . . . . . . 3 Guru 8 | . . . . . . . . . 8 Scientist 1 | . . . . . . . . . 1 Scrapper 20 | . . . . . . . . . 20 Elite 18 | . . . . . . . . . 18 Tinkerer 1 | . . . . . . . . . 1 Butcher 1 | . . . . . . . . . 1 Best Kill Streak 25 | 2 3 . . 3 9 3 9 1 25 Combat Bots Only 25 | . 3 . . 3 7 3 6 1 25 Max Kills in Single Turn 2 | 1 1 . . 1 2 2 2 1 2 Gunslinging 1 | . . . . . 1 . 1 . . Exploded 2 | . . . . . . . 2 . 1 Melee . | . . . . . . . . . . Uniques/NPCs Destroyed 2 | . . . . . . . . 1 1 01-MTF (-7/Recycling) Triborg (-7/Scraptown) Combat | -11 -10 -10 -10 -9 -8 -7 -7 -7 -7 -------- Run | Yrd Mat Min Exi Min Mat Fac Sto Rec Scr Hostile Shots Fired 1088 | . 32 13 . 27 160 33 504 17 302 Missed 298 | . 4 1 . 9 42 4 163 . 75 Damage Taken 10365 | . 338 466 . 163 1414 399 3429 214 3942 Core 1020 | . 40 99 . 16 152 4 303 4 402 Absorbed by Shields 8 | . . . . . 8 . . . . Reduced by Siege Mode 221 | . . . . . . . . . 221 Redirected to Shielding 657 | . . . . . . 10 193 . 454 Ignored by Resistances 858 | . . . . . 43 6 57 12 740 Core Remaining (%) 70 | 100 . . . 38 72 . . . . Volleys Fired 500 | 12 29 3 . 18 86 36 132 7 177 Largest 4 | 1 2 2 . 2 4 4 4 4 3 Hottest 224 | 40 136 88 . 88 224 100 215 184 100 Shots Fired 1190 | 12 58 6 . 36 313 140 330 32 263 Gun 889 | 12 15 3 . 18 278 140 242 25 156 Cannon 288 | . 43 3 . 18 35 . 78 7 104 Launcher 12 | . . . . . . . 10 . 2 Special 1 | . . . . . . . . . 1 Kinetic 784 | . 15 3 . 18 277 140 110 . 221 Thermal 359 | 12 43 3 . 18 36 . 176 32 39 Explosive 12 | . . . . . . . 10 . 2 Electromagnetic 34 | . . . . . . . 34 . . Robot Hit Streak 30 | 7 6 2 . 5 17 7 17 9 30 Robot Miss Streak 8 | 1 3 7 . 4 8 4 5 2 3 Penetration Max 1 | . . . . . . . . . 1 Secondary Targets 10 | . . . . . 3 . 3 . 4 Max Gunslinging Chain 1 | . . . . . 1 . 1 . 1 Shots Hit Robots 735 | 10 38 2 . 19 159 70 215 22 200 Core Hits 365 | 6 13 2 . 5 72 30 101 9 127 Critical Kills 3 | . . . . . 3 . . . . Critical Parts Destroyed 2 | . . . . . 1 1 . . . Critical Strikes 16 | . . . . . 4 1 3 3 5 Burn 6 | . . . . . . . 3 3 . Destroy 5 | . . . . . 4 1 . . . Blast 5 | . . . . . . . . . 5 Melee Attacks . | . . . . . . . . . . Impact . | . . . . . . . . . . Slashing . | . . . . . . . . . . Piercing . | . . . . . . . . . . Sneak Attacks . | . . . . . . . . . . Combat Hostiles . | . . . . . . . . . . Follow-up Attacks . | . . . . . . . . . . Damage Inflicted 22094 | 113 731 55 . 355 3025 1377 5361 390 10687 Guns 13760 | 113 49 13 . 86 2507 1377 3101 311 6203 Cannons 7348 | . 678 42 . 269 516 . 1359 79 4405 Explosions 964 | . . . . . . . 893 . 71 Melee . | . . . . . . . . . . Ramming 22 | . 4 . . . 2 . 8 . 8 Kinetic 15047 | . 49 13 . 86 2507 1377 1273 . 9742 Thermal 5864 | 113 678 42 . 269 516 . 2990 390 866 Explosive 832 | . . . . . . . 761 . 71 Electromagnetic 329 | . . . . . . . 329 . . Impact . | . . . . . . . . . . Slashing . | . . . . . . . . . . Piercing . | . . . . . . . . . . Highest Corruption 23 | . . . . . 6 11 22 23 2 Average Corruption 11 | . . . . . 4 7 16 22 1 Corruption Purged . | . . . . . . . . . . Corruption Blocked . | . . . . . . . . . . Effects 209 | . . . . . 29 30 99 47 4 Message Errors 57 | . . . . . 9 9 21 17 1 Matter Fused 51 | . . . . . 9 9 27 5 1 Heat Flow Errors 14 | . . . . . 2 1 5 6 . Energy Discharges 18 | . . . . . 3 3 6 6 . Parts Rejected 1 | . . . . . . . 1 . . Data Loss (minor) 29 | . . . . . 2 2 18 7 . Data Loss (major) 8 | . . . . . 2 2 2 2 . Misfires 10 | . . . . . 2 . 3 4 1 Alerts 3 | . . . . . . . 3 . . Misdirections 3 | . . . . . . . 3 . . Weapon Failures 15 | . . . . . . 4 10 . 1 Overload Shots 1 | . . . . . . . 1 . . Overflow Damage 205 | . 17 . . 12 . . 16 . 160 Projectiles 205 | . 17 . . 12 . . 16 . 160 Explosions . | . . . . . . . . . . Melee . | . . . . . . . . . . Knockbacks 7 | . 1 . . . . . . . 6 Impact 1 | . 1 . . . . . . . . Kinetic 6 | . . . . . . . . . 6 Secondary . | . . . . . . . . . . Self-Inflicted Damage 69 | . . . . . . . 69 . . Shots 2 | . . . . . . . 2 . . Rammed 5 | . 1 . . . 1 . 2 . 1 Targets Rammed 5 | . 1 . . . 1 . 2 . 1 Kicked . | . . . . . . . . . . Crushed . | . . . . . . . . . . Highest Temperature 426 | . 335 . . 29 334 331 426 219 354 Average Temperature 113 | . 114 . . 18 106 118 133 83 110 Received Heat Transfer 2716 | . 171 . . 54 390 108 951 18 1024 Effects 13 | . 3 . . . 2 1 6 . 1 Shutdowns 1 | . . . . . . . 1 . . Energy Bleed 3 | . 1 . . . 1 1 . . . Interference 6 | . . . . . 1 . 5 . . Matter Decay 1 | . 1 . . . . . . . . Damage (minor) 2 | . 1 . . . . . . . 1 Siege Activations 3 | . . . . . . . . . 3 Total Turns 286 | . . . . . . . . . 286 Longest Duration 119 | . . . . . . . . . 119 Robots Corrupted . | . . . . . . . . . . Combat Hostiles . | . . . . . . . . . . Parts Fried . | . . . . . . . . . . Impact Corruptions . | . . . . . . . . . . Robots Melted 3 | . . . . . . . 2 1 . Combat Hostiles 3 | . . . . . . . 2 1 . Parts Melted 22 | . 1 . . 1 . . 11 2 7 Heat Transferred 9679 | 250 1221 74 . 481 814 . 4799 1036 1004 Parts Sabotaged . | . . . . . . . . . . Parts Stolen 2 | . . . . . . . . . 2 Parts Stripped . | . . . . . . . . . . Power Chain Reactions 2 | . . . . . . . 2 . . Alert | -11 -10 -10 -10 -9 -8 -7 -7 -7 -7 ------- Run | Yrd Mat Min Exi Min Mat Fac Sto Rec Scr Peak Influence 613 | 25 118 . . 80 613 209 593 125 . Initial 199 | . 16 . . . 21 199 45 70 . Average 184 | 9 38 . . 62 336 90 299 49 . Maximum Alert Level 2 | . . . . . 2 1 2 . . Low Security (%) 62 | 100 100 100 . 100 26 89 23 100 . Level 1 17 | . . . . . 21 10 46 . . Level 2 20 | . . . . . 52 . 29 . . Level 3 . | . . . . . . . . . . Level 4 . | . . . . . . . . . . Level 5 . | . . . . . . . . . . High Security . | . . . . . . . . . . Max Security . | . . . . . . . . . . Squads Dispatched 21 | . 2 . . . 2 3 14 . . Investigation 3 | . . . . . 1 . 2 . . Extermination 6 | . . . . . . 3 3 . . Reinforcement 8 | . 2 . . . 1 . 5 . . Assault 1 | . . . . . . . 1 . . Garrison 3 | . . . . . . . 3 . . Intercept . | . . . . . . . . . . Searches Triggered . | . . . . . . . . . . Construction Impeded 2 | . . . . . . . 2 . . Haulers Reinforced . | . . . . . . . . . . Active Scanning Responses . | . . . . . . . . . . Cargo Convoy Interrupts . | . . . . . . . . . . Stealth | -11 -10 -10 -10 -9 -8 -7 -7 -7 -7 --------- Run | Yrd Mat Min Exi Min Mat Fac Sto Rec Scr Distress Signals 8 | . . 1 . . 5 . 2 . . Communications Jammed . | . . . . . . . . . . Distress Signals . | . . . . . . . . . . Times Spotted 203 | . 12 2 . 5 44 12 46 6 76 Peak Tracking Total 14 | . 3 2 . 3 11 2 5 1 14 Tactical Retreats 11 | . 1 . . 1 3 . 2 1 3 Traps | -11 -10 -10 -10 -9 -8 -7 -7 -7 -7 ------- Run | Yrd Mat Min Exi Min Mat Fac Sto Rec Scr Traps Triggered 10 | . 1 . . . 3 3 3 . . Indirectly . | . . . . . . . . . . Trap Hack Attempts . | . . . . . . . . . . Triggered . | . . . . . . . . . . Disarmed 6 | . 6 . . . . . . . . Reprogrammed . | . . . . . . . . . . Reused . | . . . . . . . . . . Traps Extracted . | . . . . . . . . . . Installed . | . . . . . . . . . . Triggered . | . . . . . . . . . . Machines | -11 -10 -10 -10 -9 -8 -7 -7 -7 -7 ---------- Run | Yrd Mat Min Exi Min Mat Fac Sto Rec Scr Machines Disabled 14 | . . . . 1 4 . 5 . 4 Max in Single Turn 1 | . . . . 1 1 . 1 . 1 Garrison Access 1 | . . . . . 1 . . . . Machines Repaired . | . . . . . . . . . . Machines Dismantled . | . . . . . . . . . . Machines Sabotaged . | . . . . . . . . . . Overloaded Fab Kills . | . . . . . . . . . . Hacking | -11 -10 -10 -10 -9 -8 -7 -7 -7 -7 --------- Run | Yrd Mat Min Exi Min Mat Fac Sto Rec Scr Machines Accessed 35 | . 8 . 2 . 8 6 4 7 . Terminals 24 | . 7 . . . 5 4 3 5 . Fabricators . | . . . . . . . . . . Repair Stations 2 | . . . . . 1 . 1 . . Recycling Units 3 | . 1 . . . . . . 2 . Scanalyzers 1 | . . . . . 1 . . . . Garrison Access 3 | . . . . . 1 2 . . . Total Hacks 75 | . 20 . 3 . 22 8 9 13 . Successful 30 | . 10 . 3 . 9 1 3 4 . Failed 44 | . 9 . . . 13 7 6 9 . Catastrophic 14 | . 2 . . . 3 3 2 4 . Database Lockouts 1 | . 1 . . . . . . . . Manual 40 | . 11 . 1 . 13 5 5 5 . Terminals 57 | . 19 . . . 13 6 8 11 . Fabricators . | . . . . . . . . . . Repair Stations 4 | . . . . . 3 . 1 . . Recycling Units 3 | . 1 . . . . . . 2 . Scanalyzers 4 | . . . . . 4 . . . . Garrison Access 4 | . . . . . 2 2 . . . Terminal Hacks 17 | . 7 . 3 . 1 1 3 2 . Record 2 | . . . 2 . . . . . . Part Schematic 1 | . 1 . . . . . . . . Robot Analysis 3 | . 1 . . . . . . 2 . Open Door 1 | . . . . . . . 1 . . Branch Access Points 2 | . . . . . 1 1 . . . Alert Level 1 | . 1 . . . . . . . . Unreport Threat 2 | . . . . . . . 2 . . Locate Traps 2 | . 2 . . . . . . . . Disarm Traps 1 | . 1 . . . . . . . . Hauler Manifests 1 | . 1 . . . . . . . . Derelict Proto ID Bank 1 | . . . 1 . . . . . . Fabricator Hacks . | . . . . . . . . . . Repair Station Hacks 2 | . . . . . 2 . . . . Scan Component 1 | . . . . . 1 . . . . Repair 1 | . . . . . 1 . . . . Recycling Unit Hacks 2 | . 1 . . . . . . 1 . Retrieve Components 2 | . 1 . . . . . . 1 . Scanalyzer 3 | . . . . . 3 . . . . Insert Component 2 | . . . . . 2 . . . . Analyze 1 | . . . . . 1 . . . . Garrison Access Hacks 1 | . . . . . 1 . . . . Seal Access 1 | . . . . . 1 . . . . Unauthorized Hacks 5 | . 2 . . . 2 . . 1 . Terminals 5 | . 2 . . . 2 . . 1 . Assimilate 1 | . . . . . 1 . . . . Botnet 4 | . 2 . . . 1 . . 1 . Fabricators . | . . . . . . . . . . Repair Stations . | . . . . . . . . . . Recycling Units . | . . . . . . . . . . Scanalyzers . | . . . . . . . . . . Garrison Access . | . . . . . . . . . . Data Cores Recovered 2 | . . . . . . 2 . . . Used . | . . . . . . . . . . Hacking Detections 29 | . 6 . . . 8 5 3 7 . Full Trace Events 1 | . . . . . 1 . . . . Feedback Events . | . . . . . . . . . . Feedback Blocked . | . . . . . . . . . . Robot Schematics Acquired . | . . . . . . . . . . Robots Built . | . . . . . . . . . . Authchips . | . . . . . . . . . . Time . | . . . . . . . . . . Total Robot Build Rating . | . . . . . . . . . . Part Schematics Acquired 2 | . 1 . . . 1 . . . . Parts Built . | . . . . . . . . . . Authchips . | . . . . . . . . . . Time . | . . . . . . . . . . Total Part Build Rating . | . . . . . . . . . . Parts Repaired 1 | . . . . . 1 . . . . Time 76 | . . . . . 76 . . . . Parts Recycled . | . . . . . . . . . . Recycled Matter . | . . . . . . . . . . Retrieved Matter . | . . . . . . . . . . Retrieved Components 10 | . 10 . . . . . . . . Parts Scanalyzed 1 | . . . . . 1 . . . . Part Schematics Acquired 1 | . . . . . 1 . . . . Parts Damaged 1 | . . . . . 1 . . . . Bothacking | -11 -10 -10 -10 -9 -8 -7 -7 -7 -7 ------------ Run | Yrd Mat Min Exi Min Mat Fac Sto Rec Scr Used RIF Installer . | . . . . . . . . . . Robots Hacked . | . . . . . . . . . . Non-combat . | . . . . . . . . . . Combat . | . . . . . . . . . . Robot Hacks Applied . | . . . . . . . . . . Relay Couplers Released 3 | . . . . . . . 3 . . Programmers 3 | . . . . . . . 3 . . Fabnet Peak Effective % . | . . . . . . . . . . Robots Rewired . | . . . . . . . . . . Allies Hacked . | . . . . . . . . . . Hacks Repelled . | . . . . . . . . . . Allies | -11 -10 -10 -10 -9 -8 -7 -7 -7 -7 -------- Run | Yrd Mat Min Exi Min Mat Fac Sto Rec Scr Total Allies . | . . . . . . . . . . Largest Group . | . . . . . . . . . . Highest-Rated Group . | . . . . . . . . . . Highest-Rated Ally . | . . . . . . . . . . Total Orders . | . . . . . . . . . . Ally Attacks . | . . . . . . . . . . Total Damage . | . . . . . . . . . . Kills . | . . . . . . . . . . Allies Corrupted . | . . . . . . . . . . Allies Melted . | . . . . . . . . . . Intel | -11 -10 -10 -10 -9 -8 -7 -7 -7 -7 ------- Run | Yrd Mat Min Exi Min Mat Fac Sto Rec Scr Robot Analysis Total 3 | . 1 . . . . . . 2 . Derelict Logs Recovered 1 | . . . . 1 . . . . . Drone Launches . | . . . . . . . . . . Drone Recoveries . | . . . . . . . . . . Exploration | -11 -10 -10 -10 -9 -8 -7 -7 -7 -7 ------------- Run | Yrd Mat Min Exi Min Mat Fac Sto Rec Scr Turns Passed 13117 | 213 1406 175 457 642 2572 1472 2034 960 3186 Spaces Moved 6255 | 107 783 104 285 341 1261 628 760 474 1512 Core 6 | 6 . . . . . . . . . Treads 2352 | 101 783 104 285 341 691 1 10 . 36 Legs . | . . . . . . . . . . Wheels 3897 | . . . . . 570 627 750 474 1476 Hover . | . . . . . . . . . . Flight . | . . . . . . . . . . Fastest Speed 50 | 50 160 160 160 160 130 170 170 195 150 Average Speed 172 | 153 160 160 160 160 163 177 191 195 173 Slowest Speed 800 | 160 160 160 160 160 320 477 800 195 335 Overloaded Moves . | . . . . . . . . . . Propulsion Burnouts . | . . . . . . . . . . Robots Hopped . | . . . . . . . . . . Cave-ins Triggered . | . . . . . . . . . . Exploration Rate (%) 55 | 8 94 20 62 76 67 16 83 75 57 Regions Visited 9 Branch Regions 6 Pre-discovered Areas 1 | . . . 1 . . . . . . Known Exits Taken 1 | . . . . . . 1 . . . Unknown Exits Taken 8 | 1 1 1 1 1 1 . 1 1 . Scrap Searched 7 | . . . . 2 . . . . 5 Spaces Dug . | . . . . . . . . . . Terrain Destroyed 134 | . . . . . 5 . 41 5 83 Melee . | . . . . . . . . . . Projectile 92 | . . . . . 5 . 13 5 69 AOE 42 | . . . . . . . 28 . 14 Terrain Rammed . | . . . . . . . . . . Walls Destroyed . | . . . . . . . . . . Machines Disabled . | . . . . . . . . . . Actions | -11 -10 -10 -10 -9 -8 -7 -7 -7 -7 --------- Run | Yrd Mat Min Exi Min Mat Fac Sto Rec Scr Total 8014 | 139 886 107 288 404 1674 962 1120 495 1939 Wait 801 | 4 36 . . 38 217 229 127 7 143 Move 6246 | 106 782 103 284 340 1260 627 759 473 1512 Hop . | . . . . . . . . . . Pick Up 112 | 8 10 . 1 4 30 20 18 2 19 Fast Attach 89 | 7 8 . . . 23 9 29 . 13 Attach 46 | . . 1 . 1 5 3 17 . 19 Detach 28 | . 5 . . . 6 4 4 . 9 Swap 54 | 2 3 . . . 9 7 8 2 23 Drop 131 | . 12 . 3 3 37 25 24 4 23 Fire 500 | 12 29 3 . 18 86 36 132 7 177 Melee . | . . . . . . . . . . Ram . | . . . . . . . . . . Kick . | . . . . . . . . . . Crush 5 | . 1 . . . 1 . 2 . 1 Escape Stasis 2 | . . . . . . 2 . . . Rewire . | . . . . . . . . . . Trap . | . . . . . . . . . . Miscellaneous . | . . . . . . . . . . Route ------- -11/Scrapyard -10/Materials (discovered 5 exits: [*Mat x3] / [*Min x2]) -10/Mines -10/Exiles (discovered 2 exits: [*Min x2]) -9/Mines -8/Materials -7/Factory (discovered 4 exits: *Sto x2 / Low x2) -7/Storage (discovered 2 exits: [*Fac] / *Rec) -7/Recycling (discovered 2 exits: [*Fac] / *Scr) -7/Scraptown (discovered 1 exit: [*Fac]) History --------- Turn | Location | Event 9 | -11/Scrapyard | Discovered new exit (range 15) 214 | -11/Scrapyard | Entered Materials 335 | -10/Materials | Build established: Mutant 384 | -10/Materials | Discovered new exit (range 10) 480 | -10/Materials | Discovered new exit (range 8) 791 | -10/Materials | Discovered new exit (range 5) 819 | -10/Materials | Central database locked down 828 | -10/Materials | Discovered new exit (range 15) 962 | -10/Materials | Discovered new exit (range 8) 1620 | -10/Materials | Entered Mines 1657 | -10/Mines | Deemed a non-threat by the Exiles lab entrance 1659 | -10/Mines | Discovered new exit (range 5) 1717 | -10/Mines | Assembled infested the area 1762 | -10/Mines | Core integrity fell below 50% 1795 | -10/Mines | Entered Exiles 1821 | -10/Exiles | Discovered new exit (range 14) 1840 | -10/Exiles | Met 8R-AWN 1866 | -10/Exiles | Met EX-HEX 1927 | -10/Exiles | Met EX-DEC 1938 | -10/Exiles | Learned location of Zion (-6) 1976 | -10/Exiles | Met EX-BIN 1995 | -10/Exiles | Aligned with FarCom system 1997 | -10/Exiles | Given EX-Vault access code 2051 | -10/Exiles | Opened EX-Vault 2064 | -10/Exiles | Found XL Autogun Array 2099 | -10/Exiles | Warned to stay clear of 0b10 Research branches 2236 | -10/Exiles | Discovered new exit (range 11) 2252 | -10/Exiles | Left Exiles lab with XL Autogun Array 2252 | -10/Exiles | Entered Mines 2382 | -9/Mines | A weapon hastily lodged in a ceiling crevice suddenly fell to the ground 2537 | -9/Mines | Learned Materials emergency access door positions 2794 | -9/Mines | Found a hidden stash of uninstalled traps 2822 | -9/Mines | Discovered new exit (range 11) 2894 | -9/Mines | Entered Materials 2894 | -8/Materials | Evolved 4 slots: Propulsion x1, Utility x1, Weapon x2 3123 | -8/Materials | Repaired Broken Imp. VTOL Module 3209 | -8/Materials | Build established: Skirmisher 3314 | -8/Materials | Destroyed 7 combat bots 3343 | -8/Materials | Lost 3 parts (1p1n1w) 3601 | -8/Materials | Discovered new exit (range 7) 3631 | -8/Materials | Build established: Scavenger-Skirmisher 4224 | -8/Materials | Build established: Tank 5083 | -8/Materials | Build established: Hauler-Skirmisher 5466 | -8/Materials | Entered Factory 5466 | -7/Factory | Evolved 2 slots: Propulsion x1, Utility x1 6523 | -7/Factory | System corruption reached 10% 6552 | -7/Factory | Discovered new exit (range 15) 6591 | -7/Factory | Discovered new exit (range 12) 6642 | -7/Factory | Identified exit to Storage 6642 | -7/Factory | Identified exit to Lower Caves 6938 | -7/Factory | Entered Storage 7480 | -7/Storage | Garrison activated, responded to threat 7695 | -7/Storage | Lost 9 parts (3n4u2w) 7911 | -7/Storage | Lost 4 parts (1p2n1w) 8138 | -7/Storage | First assault squad dispatched 8275 | -7/Storage | Lost 4 parts (2n2w) 8414 | -7/Storage | Met 01-MTF 8536 | -7/Storage | Discovered new exit (range 16) 8959 | -7/Storage | Discovered new exit (range 5) 8972 | -7/Storage | Entered Recycling 8972 | -7/Recycling | Accompanied by 1 ally (01-MTF) 9473 | -7/Recycling | Scanned before Scraplab entrance 9523 | -7/Recycling | Discovered new exit (range 15) 9773 | -7/Recycling | Destroyed 01-MTF 9913 | -7/Recycling | Entered Scraplab 9928 | -7/Recycling | Discovered new exit (range 2) 9932 | -7/Recycling | Entered Scraptown 9932 | -7/Scraptown | System corruption cleaned by C-Scrubber 10224 | -7/Scraptown | Build established: Hauler-Tank 10241 | -7/Scraptown | Visited TADAMA 10274 | -7/Scraptown | Visited Spacefarers 10480 | -7/Scraptown | Discovered new exit (range 5) 10662 | -7/Scraptown | Visited Junk Repository 10695 | -7/Scraptown | Visited CPS Storage 11118 | -7/Scraptown | Build established: Scavenger-Tank 11322 | -7/Scraptown | Visited Comm Corps 11407 | -7/Scraptown | Visited IN-MT5's Study 11441 | -7/Scraptown | Visited Supply Room 12214 | -7/Scraptown | Build established: Scavenger-Mutant 12408 | -7/Scraptown | Attacked by Scraptown defenders 12447 | -7/Scraptown | Destroyed Triborg 12465 | -7/Scraptown | Core integrity fell below 50% 12474 | -7/Scraptown | Lost 6 parts (1p1n4u) 12490 | -7/Scraptown | Found Unknown Treads 12490 | -7/Scraptown | Identified Tri-treads 12498 | -7/Scraptown | Found Prototype Ballistic Cannon 12498 | -7/Scraptown | Identified Siege Cannon 12515 | -7/Scraptown | Destroyed 12 combat bots 12781 | -7/Scraptown | Build established: Tank 12978 | -7/Scraptown | Destroyed 7 combat bots 13019 | -7/Scraptown | Core integrity fell below 20% 13118 | -7/Scraptown | Destroyed by WD-TEK(j) with Overtuned Pulse Rifle Last Messages --------------- 13100_ Switching to secondary target: M9-LV3(j). 13102_ Acquired VSS Leg. 13106_ Acquired 85 matter. 13108_ LT-OJU(p) destroyed. 13108_ Switching to secondary target: M9-LV3(j). 13109_ Acquired 9 matter. 13111_ Acquired 4 matter. 13113_ Bolt penetrates UFD HQ Gate. 13113_ Destroyed Wheel. 13113_ Ripteeth melted. 13113_ XX-2UD(r) destroyed. 13113_ Switching to secondary target: M9-LV3(j). 13114_ Acquired 23 matter. 13116_ Acquired 10 matter. 13117_ Acquired 14 matter. 13117_ VSS Leg destroyed. 13118_ The unstable cave ceiling collapses. 13118_ Mak. Microdissipator Network crushed. 13118_ Bolt penetrates UFD HQ Gate. 13118_ M9-LV3(j) destroyed. Map ----- +----------------------------------------------------+ | #??# # # #?????# """"#???????????????????????? | | #??# #?????# || #???????????????????????? | | #??# #?????# #???????????????????????? | | ########## ########## ####??????????????????????? | | #??????????????????????? | | #??????????????????????? | | *!= #??????????????????????? | | ![!%= #??????????????????????? | | %[! #??????????????????????? | | ##############! = #??????????????????????? | | #???????????# # !%= #??????????????????????? | | #???????????# ! ! #??????????????????????? | | #????????????# *==j[ #??????????????????????? | | #????????????# % [=%g! #??????????????????????? | | #????????????? [%[=! #??????????????????????? | | #?????######## [ %!*!* ###?#??????????????????? | | #?????#"""""" =*%=!= ""#"#??????????????????? | | #?????#" " " ![=!! """"#??????????????????? | | #?????#" " = * !!!t/!""###??????????????????? | | #?????#"" " [/*g!!*### #??????????????????? | | #?????#""" " * [= =##;##??????????????????? | | #?????#"" =[=[=!! "??????????????????? | | #?????#" # !!*!! "??????????????????? | | #????? !% "" ; !!* ! [["??????????????????? | | #?????# %=!* ; *!! /==/=!""?????????????????? | | ####### %=[!;;;; ! [! @//![*"?????????????????? | | %!%[%=[==! = ! !%!!!=!!""?????????????????? | | =[&!!%[= ! *%[!=!!="?????????????????? | | =%![! ! g! =!=!%p=jhE =???????????? | | [*= = !!!**""""[= %!%!????????? | | % =!="????? =% %????????? | | % ! #"???????!??????????? | | !=!! !! #???????????????????? | | [%!! ![ #???????????????????? | | #### ## =* ####### ### ####???????????????????? | | #?#" "## #??????????????????????? | | "##???#"" "## #??????????????????????? | | ####" "#????#"!! ""##=! #??????????????????????? | | "" # "#????#"!! ""?; [ #??????????????????????? | | #" "#????#" !! "?;!! #??????????????????????? | | ""#" "#????#"" !!"""?#z[ #??????????????????????? | | +###" "#????########??#!% #??????????????????????? | | "#??????????????#%* #??????????????????????? | | """""""#??????????????#% #??????????????????????? | | ########??????????????# #??????????????????????? | | ??????????????????????# #??????????????????????? | | ?????????????????###### #??????????????????????? | | ???????????????"""""""" #??????????????????????? | | ??????????????""" """"" #??????????????????????? | | ??????##????"""" " "" #??????????????????????? | +----------------------------------------------------+ Best States ------------- Heat Dissipation 48 Energy Generation 18 Energy Capacity 310 Matter Stores 300 Matter Capacity 300 Sight Range 16 Terrain Scan Density 10 Jamming Range 12 Armor Coverage 450 Resistance: KI 30 Weapon Shielding 66 Evasion (%) 40 Targeting Accuracy 8 Recoil Reduction 4 Item Schematics ----------------- Huge Storage Unit | -10/Materials | Hacked Imp. VTOL Module | -8/Materials | Scanalyzed Robot Schematics ------------------ None Fabricated ------------ Nothing Alien Tech Used ----------------- None Achievements -------------- None Challenges ------------ None Game ------ Seed RemoteAssemblySpear Manual? 0 Play Time 01:46:38 Cumulative 130.7 hours Start 2025.03.01 @ 22:57:38 End 2025.03.02 @ 01:26:22 Sessions 6 Manual Loads 0 Difficulty Rogue Special Mode None Game No. 75 Rogue 75 Adventurer 0 Explorer 0 Win Type - Total 3 Types 3/0/0/0/0/0/0/0/0 Lore% 56 Gallery% 66 Achievement% 55 Wizard Run 0 Options --------- Layout 1 ASCII 1 Keyboard 1 Movement Numpad Keybinds 0 Fullscreen 2 Font 24/Terminus Map View 50x40 Zoom Use 0% Tactical HUD 1 Map Filters NONE Filters NONE Steam 1 RUN: c236aab4-71a0-4751-9a3a-2cf0dad88a5d